{"text_format":"1","workbook":"xlsx","n_sheets":5,"sheets":["Instructions","Index","Price List","Websites","Changes"],"not_rendered":{"charts":0,"images":2,"macros":1,"external_links":1,"defined_names":19,"comments":0,"pivot_tables":0},"unopened":[],"bounds":{"document_bytes":16777216,"sheet_cells":100000,"rows_first":2000,"rows_last":500,"rows_between":2000,"halvings":0,"cell_chars":16384,"cell_head_chars":4096},"cells_cut":0,"cells_raw":0,"read":"whole","date_system":"1900"}

{"sheet":"Instructions","index":0,"n_rows":58,"n_cols":10,"rows_kept":58,"cut":false,"hidden":false,"merged":[[7,2,7,7],[36,3,36,4]]}
["Manufacturer","Schluter Ditra-Heat"]
["File as","S"]
["Product Code","N"]
["CCTD Effective Date","4/1/23"]
[]
[]
[]
["Enter your Company Name"]
[]
[null,"Click on \"Index\" to set the print area for the price list index"]
[null,"Then you can send it to print"]
[]
[]
[null,"Click on \"Suggested Price List\" to set the print area for Conestoga Tile's suggested price list."]
[null,"Then you can send it to print"]
[]
[]
[null,"Enter your discount codes if you want a personal net cost sheet."]
[]
[null,"Product"]
[null,"Code","Disc. %"]
[null,{"$f":"+B3","v":"N"},0,"  This is a \"NET\" price list.  0% is the discount for this spreadsheet"]
[]
[null,"Click on \"Your Cost\" to set the print area for your personal cost report."]
[null,"Then you can send it to print"]
[]
[]
["Discount: ","To help establish your price list, enter the gross profit percent for each type of product."]
[null,"If you want to use Conestoga Tile's list price, leave them blank."]
[]
["Round Nickel: ","If you always want your price to round to the nearest nickel, enter \"YES\"."]
[null,"If you enter \"NO\", it will NOT round to the nearest nickel."]
[]
["Ending Cents: ","If you always want your price to end with a certain cents, enter that cent value."]
[null,"If you leave it \"blank\" will NOT round to this cent value."]
[]
[null,"Group","GP Margin","GP Margin % for",null,"Round Nickel","add/subtract","Ending Cents",null,"  "]
[null,1,null,"Membrane- Roll",null,"No",0]
[null,2,null,"Membrane- Sheet",null,"No",0]
[null,3,null,"Cable & Kits",null,"No",0]
[null,4,null,"Thermostats",null,"No",0]
[null,5,null,0,null,"No",0]
[null,6,null,0,null,"No",0]
[null,7,null,0,null,"No",0]
[]
["If you want to manually adjust your price list, hit \"F5\" and go to \"Customer_Cost\" to manually adjust pricing."]
["You can enter a value in the column labeled \"Adj.\" to change your price manually."]
[]
[null,"Click on \"Your Price Calculation\" to set the print area for your personal cost calculation report."]
[null,"Then you can send it to print"]
[]
[]
[null,"Click on \"Your Price List\" to set the print area for your personal price list."]
[null,"Then you can send it to print"]
[null,null,null,null,null,null,null,"Yes"]
[]
["If you have any questions on how to best use this spreadsheet, please feel free to contact"]
["Jim Vogel at (800) 422-6860, ext. 4201 or via e-mail at jimvogel@cctd.com"]

{"sheet":"Index","index":1,"n_rows":51,"n_cols":11,"rows_kept":51,"cut":false,"hidden":false,"merged":[[5,0,5,10],[48,0,48,10],[50,0,50,10],[2,5,2,10],[3,4,3,7]]}
[]
[]
[null,null,null,null,null,{"$f":"\"File '\"&Instructions!B2&\"' - \"&Instructions!B1","v":"File 'S' - Schluter Ditra-Heat"}]
[]
[]
[{"$f":"\"Price List Index - \"&Instructions!B4","v":"Price List Index - 4/1/23"}]
[]
[]
[]
[]
["Page",null,"Series",null,"Product Type",null,"Page",null,"Series",null,"Product Type"]
[]
[]
[]
[]
[]
[]
[]
[]
[]
[]
[]
[]
[]
[]
[]
[]
[]
[]
[]
[]
[]
[]
[]
[]
[]
[]
[]
[]
[]
[]
[]
[]
[]
[]
[]
[]
[]
["This price list is available electronically on an Excel spreadsheet at www.conestogatile.com/pricelists."]
[]
["The spreadsheet has many special features to assist you.  Apply your discount to generate your net costs for your purchasing department.  Apply your standard gross margin percentage or custom prices to generate your own custom price list for your showroom.  Print out individual price list for each series that can be attached to the back of your sample boards for easy reference."]

{"sheet":"Price List","index":2,"n_rows":188,"n_cols":41,"rows_kept":188,"cut":false,"hidden":false,"merged":[[84,12,84,13],[93,12,93,13],[97,12,97,13],[99,12,99,13],[85,12,85,13],[86,12,86,13],[95,12,95,13],[96,12,96,13],[177,3,177,4],[18,2,18,19],[170,2,170,19],[106,12,106,13],[109,12,109,13],[111,12,111,13],[108,12,108,13],[20,2,20,19],[110,12,110,13],[77,12,77,13],[78,12,78,13],[80,12,80,13],[82,12,82,13],[104,12,104,13],[107,12,107,13],[79,12,79,13],[9,22,9,23],[12,13,12,19],[70,12,70,13],[73,12,73,13],[102,12,102,13],[75,12,75,13],[76,12,76,13],[72,12,72,13],[74,12,74,13],[14,13,15,19],[17,14,17,15],[81,12,81,13],[83,12,83,13],[9,25,9,32],[12,22,12,23],[172,2,172,19],[10,14,10,15],[9,14,9,19],[13,30,13,32],[112,12,112,13],[98,12,98,13],[100,12,100,13],[101,12,101,13],[103,12,103,13],[105,12,105,13]]}
[null,"Membrane- Roll",null,null,"Size",null,"Shape",null,null,null,null,null,null,null,null,null,null,null,{"$f":"IF(Suggested=\"Yes\",AA1,AG1)","v":0.05},"Roll",{"$f":"+Instructions!$B$3","v":"N"},null,{"$f":"+Instructions!$C$22","v":0},{"$f":"ROUND($AA1*(1-W1)+0.004999,2)","v":0.05},null,"new",0.05,{"$f":"+W1","v":0},0.05,{"$f":"(AG1-AC1)/AG1","v":0},null,1,{"$f":"SUM(AJ1:AL1)+AE1","v":0.05},null,null,{"$f":"ROUND(AC1/(1-VLOOKUP(AF1,Group,2,FALSE)),2)","v":0.05},{"$f":"IF(VLOOKUP(AF1,Group,5,FALSE)=\"YES\",VLOOKUP(ROUND(ROUND(AJ1,1)-AJ1,2),Round,2,FALSE)+VLOOKUP(AF1,Group,6,FALSE),0)","v":0},{"$f":"IF(VLOOKUP(AF1,Group,7,FALSE)=\"\",0,ROUND(AJ1-0.04999,1)-AJ1+AM1)","v":0},{"$f":"IF(VLOOKUP(AF1,Group,7,FALSE)=\"\",\"\",VLOOKUP(AF1,Group,7,FALSE))","v":""},null,"X"]
[null,"Membrane- Sheet",null,null,"Size",null,"Shape",null,null,null,null,null,null,null,null,null,null,null,{"$f":"IF(Suggested=\"Yes\",AA2,AG2)","v":0.05},"Sheet",{"$f":"+Instructions!$B$3","v":"N"},null,{"$f":"+Instructions!$C$22","v":0},0.05,null,"new",0.05,0,0.05,0,null,2,0.05,null,null,0.05,0,0,"",null,"X"]
[null,"Cable & Kits",null,null,"Size",null,"Shape",null,null,null,null,null,null,null,null,null,null,null,0.05,"EA",{"$f":"+Instructions!$B$3","v":"N"},null,{"$f":"+Instructions!$C$22","v":0},0.05,null,"new",0.05,0,0.05,0,null,3,0.05,null,null,0.05,0,0,"",null,"X"]
[null,"Thermostats",null,null,"Size",null,"Shape",null,null,null,null,null,null,null,null,null,null,null,0.05,"EA",{"$f":"+Instructions!$B$3","v":"N"},null,{"$f":"+Instructions!$C$22","v":0},0.05,null,"new",0.05,0,0.05,0,null,4,0.05,null,null,0.05,0,0,"",null,"X"]
[null,0,null,null,"Size",null,"Shape",null,null,null,null,null,null,null,null,null,null,null,0,"EA",{"$f":"+Instructions!$B$3","v":"N"},null,{"$f":"+Instructions!$C$22","v":0},0,null,"new",0,0,0,{"$error":"#DIV/0!"},null,5,0,null,null,0,0,0,"",null,"X"]
[null,0,null,null,"Size",null,"Shape",null,null,null,null,null,null,null,null,null,null,null,0,"EA",{"$f":"+Instructions!$B$3","v":"N"},null,{"$f":"+Instructions!$C$22","v":0},0,null,"new",0,0,0,{"$error":"#DIV/0!"},null,6,0,null,null,0,0,0,"",null,"X"]
[null,0,null,null,"Size",null,"Shape",null,null,null,null,null,null,null,null,null,null,null,0,"EA",{"$f":"+Instructions!$B$3","v":"N"},null,{"$f":"+Instructions!$C$22","v":0},0,null,"new",0,0,0,{"$error":"#DIV/0!"},null,7,0,null,null,0,0,0,"",null,"X"]
[null,"Format",null,null,null,null,null,null,null,null,null,null,null,null,null,null,"Stock","a",1000,"ABC",null,null,0.1,1000,null,"ABC",1000,0.1,1000,0.1,10,null,1000,null,null,null,null,null,null,null,"X"]
[null,null,null,null,null,null,null,null,null,null,null,null,null,null,null,null,null,null,null,null,null,null,null,null,null,null,null,null,null,null,null,null,null,null,null,null,null,null,null,null,"X"]
[null,null,null,null,null,null,null,null,null,null,null,null,null,null,"Price List",null,null,null,null,null,null,null,"Cust. Cost",null,null,"Customer Cost Calculation",null,null,null,null,null,null,null,null,null,null,null,null,null,null,"X"]
[null,null,null,"Sizes & Shapes",null,null,null,null,null,null,null,"Schluter Part #",null,null,"Full Carton",null,"Stock","Note",{"$f":"IF(Suggested=\"Yes\",AA11,AG11)","v":"Net Price"},"U/M","Code",null,"Disc.","Net",null,"Chg","Net Price","Disc","Act. Cost","GP%","Adj.","Group","Price",null,null,"Calc Price",".05 Round","Cents","Round to",null,"X"]
[null,null,null,null,null,null,null,null,null,null,null,null,null,null,null,null,null,null,null,null,null,null,null,null,null,null,null,null,null,null,null,null,null,null,null,null,null,null,null,null,"X"]
[null,null,null,null,null,null,null,null,null,null,null,null,null,{"$f":"\"File '\"&Instructions!B2&\"' - \"&Instructions!B1","v":"File 'S' - Schluter Ditra-Heat"},null,null,null,null,null,null,null,null,"Cost",null,null,null,null,null,null,null,null,null,"Retail Price Calculations",null,null,null,null,null,null,null,"X"]
[null,null,null,null,null,null,null,null,null,null,null,null,null,null,null,null,null,null,null,{"$f":"+Instructions!B4","v":"4/1/23"},null,null,null,null,null,null,null,null,null,null,{"$f":"TODAY()","v":"2023-03-01"},null,null,null,null,null,null,null,null,null,"X"]
[null,null,null,null,null,null,null,null,null,null,null,null,null,{"$f":"IF(Instructions!C8=\"\",\"\",+Instructions!C8)","v":""},null,null,null,null,null,null,null,null,null,null,null,null,null,null,null,null,null,null,null,null,null,null,null,null,null,null,"X"]
[null,null,{"$f":"\"Product Code '\"&Instructions!B3&\"'\"","v":"Product Code 'N'"},null,null,null,null,null,null,null,null,null,null,null,null,null,null,null,null,null,null,null,null,null,null,null,null,null,null,null,null,null,{"$f":"IF(Instructions!$C$8=\"\",\"\",Instructions!$C$8)","v":""},null,null,null,null,null,null,null,"X"]
[null,null,null,null,null,null,null,null,null,null,null,null,null,null,null,null,null,null,null,null,null,null,null,null,null,null,null,null,null,null,null,null,null,null,null,null,null,null,null,null,"X"]
[null,null,"Sizes & Shapes",null,null,null,"Schluter Part #",null,null,null,null,null,null,null,"Full Carton",null,"Stock","Note",{"$f":"+S$11","v":"Net Price"},"U/M",{"$f":"+U$11","v":"Code"},null,"Disc.","Net",null,"Chg","Net Price",{"$f":"+AB$11","v":"Disc"},"Act. Cost","GP%","Adj.",{"$f":"+AF$11","v":"Group"},"Price",null,null,"Calc Price",".05 Round","Cents","Round to",null,"X"]
[null,null,"ALL ITEMS MARKED WITH PACKAGING QUANTITY ARE SOLD IN MULTIPLES OF THAT QUANTITY ONLY",null,null,null,null,null,null,null,null,null,null,null,null,null,null,null,null,null,null,null,null,null,null,null,null,null,null,null,null,null,null,null,null,null,null,null,null,null,"X"]
[null,null,null,null,null,null,null,null,null,null,null,null,null,null,null,null,null,null,null,null,null,null,null,null,null,null,null,null,null,null,null,null,null,null,null,null,null,null,null,null,"X"]
[null,null,"PRICING LISTED IS NET PRICING. TRADE DISCOUNTS DO NOT APPLY.",null,null,null,null,null,null,null,null,null,null,null,null,null,null,null,null,null,null,null,null,null,null,null,null,null,null,null,null,null,null,null,null,null,null,null,null,null,"X"]
[]
[null,null,"DITRA-HEAT",null,null,null," ",null," ",null,null," "," "," ",null,null,null,"Item # Lookup:","SHDH5",null,null,null,null,null,null,null,null,null,null,null,null,null,null,null,null,null,null,null,null,null,"X"]
[null,null,null,null,null,null,null,null,null,null,null,null,null,null,null,null,null,null,null,null,null,null,null,null,null,null,null,null,null,null,null,null,null,null,null,null,null,null,null,null,"X"]
[null,null,null,null,"DITRA-HEAT is a polypropylene membrane with a cut-back stud structure & an anchoring fleece laminated to the underside.  The thickness of the mat,",null,null,null,null,null,null,null,null,null,null,null,null,null,null,null,null,null,null,null,null,null,null,null,null,null,null,null,null,null,null,null,null,null,null,null,"X"]
[null,null,null,null,"including the stud structure is 1/4\".  The stud structure is specifically designed to secure the DITRA-HEAT-E-HK electric floor heating cable in place.  In",null,null,null,null,null,null,null,null,null,null,null,null,null,null,null,null,null,null,null,null,null,null,null,null,null,null,null,null,null,null,null,null,null,null,null,"X"]
[null,null,null,null,"addition, DITRA-HEAT integrates customizable, comfortable electric floor warming with the functions associated with DITRA:  uncoupling, waterproofing,",null,null,null,null,null,null,null,null,null,null,null,null,null,null,null,null,null,null,null,null,null,null,null,null,null,null,null,null,null,null,null,null,null,null,null,"X"]
[null,null,null,null,"vapor management & support to ensure a long lasting installation.  ",null,null,null,null,null,null,null,null,null,null,null,null,null,null,null,null,null,null,null,null,null,null,null,null,null,null,null,null,null,null,null,null,null,null,null,"X"]
[null,null,null,null,null,null,null,null,null,null,null,null,null,null,null,null,null,null,null,null,null,null,null,null,null,null,null,null,null,null,null,null,null,null,null,null,null,null,null,null,"X"]
[null,"Membrane- Roll",null,null,"3' 2-5/8\" x 41' 10-3/4\"",null,"DH512M",null,null,null,null,null,null,null,null,"(134.50 SF/Roll)","Stock",null,{"$f":"IF(Suggested=\"Yes\",AA30,AG30)","v":265.14999999999998},"Roll",{"$f":"+Instructions!$B$3","v":"N"},null,{"$f":"+Instructions!$C$22","v":0},{"$f":"ROUND($AA30*(1-W30)+0.004999,2)","v":265.14999999999998},null,"YES",265.14999999999998,{"$f":"+W30","v":0},{"$f":"+X30","v":265.14999999999998},{"$f":"(AG30-AC30)/AG30","v":0},null,1,{"$f":"SUM(AJ30:AL30)+AE30","v":265.14999999999998},null,null,{"$f":"ROUND(AC30/(1-VLOOKUP(AF30,Group,2,FALSE)),2)","v":265.14999999999998},{"$f":"IF(VLOOKUP(AF30,Group,5,FALSE)=\"YES\",VLOOKUP(ROUND(ROUND(AJ30,1)-AJ30,2),Round,2,FALSE)+VLOOKUP(AF30,Group,6,FALSE),0)","v":0},{"$f":"IF(VLOOKUP(AF30,Group,7,FALSE)=\"\",0,ROUND(AJ30-0.04999,1)-AJ30+AM30)","v":0},{"$f":"IF(VLOOKUP(AF30,Group,7,FALSE)=\"\",\"\",VLOOKUP(AF30,Group,7,FALSE))","v":""},null,"X"]
[null,"Membrane- Sheet",null,null,"3' 2-5/8\" x 2' 7-3/8\"",null,"DH5MA",null,null,null,null,null,null,null,null,"(8.40 SF/Sheet)","Stock",null,{"$f":"IF(Suggested=\"Yes\",AA31,AG31)","v":17.25},"Sheet",{"$f":"+Instructions!$B$3","v":"N"},null,{"$f":"+Instructions!$C$22","v":0},{"$f":"ROUND($AA31*(1-W31)+0.004999,2)","v":17.25},null,"YES",17.25,{"$f":"+W31","v":0},{"$f":"+X31","v":17.25},{"$f":"(AG31-AC31)/AG31","v":0},null,2,{"$f":"SUM(AJ31:AL31)+AE31","v":17.25},null,null,{"$f":"ROUND(AC31/(1-VLOOKUP(AF31,Group,2,FALSE)),2)","v":17.25},{"$f":"IF(VLOOKUP(AF31,Group,5,FALSE)=\"YES\",VLOOKUP(ROUND(ROUND(AJ31,1)-AJ31,2),Round,2,FALSE)+VLOOKUP(AF31,Group,6,FALSE),0)","v":0},{"$f":"IF(VLOOKUP(AF31,Group,7,FALSE)=\"\",0,ROUND(AJ31-0.04999,1)-AJ31+AM31)","v":0},{"$f":"IF(VLOOKUP(AF31,Group,7,FALSE)=\"\",\"\",VLOOKUP(AF31,Group,7,FALSE))","v":""},null,"X"]
[]
[null,null,"DITRA-HEAT-PS",null,null,null," ",null," ",null,null," "," "," ",null,null,null,"Item # Lookup:","SHDHPS5",null,null,null,null,null,null,null,null,null,null,null,null,null,null,null,null,null,null,null,null,null,"X"]
[null,null,null,null,null,null,null,null,null,null,null,null,null,null,null,null,null,null,null,null,null,null,null,null,null,null,null,null,null,null,null,null,null,null,null,null,null,null,null,null,"X"]
[null,null,null,null,"DITRA-HEAT-PS is a peel and stick membrane that features a pressure-sensitive adhesive (PSA) to bond the membrane to the substrate, eliminating",null,null,null,null,null,null,null,null,null,null,null,null,null,null,null,null,null,null,null,null,null,null,null,null,null,null,null,null,null,null,null,null,null,null,null,"X"]
[null,null,null,null,"the need for thin-set mortar.  Quick and easy to install, DITRA-HEAT-PS integrates customizable, comfortable electric floor warming with the same",null,null,null,null,null,null,null,null,null,null,null,null,null,null,null,null,null,null,null,null,null,null,null,null,null,null,null,null,null,null,null,null,null,null,null,"X"]
[null,null,null,null,"functions associated with DITRA-HEAT: uncoupling, waterproofing, vapor management, and load support to ensure a long-lasting tile installation.",null,null,null,null,null,null,null,null,null,null,null,null,null,null,null,null,null,null,null,null,null,null,null,null,null,null,null,null,null,null,null,null,null,null,null,"X"]
[null,null,null,null,null,null,null,null,null,null,null,null,null,null,null,null,null,null,null,null,null,null,null,null,null,null,null,null,null,null,null,null,null,null,null,null,null,null,null,null,"X"]
[null,"Membrane- Roll",null,null,"3' 2-5/8\" x 41' 10-3/4\"",null,"DHPS512M",null,null,null,null,null,null,null,null,"(134.50 SF/Roll)","Stock",null,{"$f":"IF(Suggested=\"Yes\",AA39,AG39)","v":331.45},"Roll",{"$f":"+Instructions!$B$3","v":"N"},null,{"$f":"+Instructions!$C$22","v":0},{"$f":"ROUND($AA39*(1-W39)+0.004999,2)","v":331.45},null,"YES",331.45,{"$f":"+W39","v":0},{"$f":"+X39","v":331.45},{"$f":"(AG39-AC39)/AG39","v":0},null,1,{"$f":"SUM(AJ39:AL39)+AE39","v":331.45},null,null,{"$f":"ROUND(AC39/(1-VLOOKUP(AF39,Group,2,FALSE)),2)","v":331.45},{"$f":"IF(VLOOKUP(AF39,Group,5,FALSE)=\"YES\",VLOOKUP(ROUND(ROUND(AJ39,1)-AJ39,2),Round,2,FALSE)+VLOOKUP(AF39,Group,6,FALSE),0)","v":0},{"$f":"IF(VLOOKUP(AF39,Group,7,FALSE)=\"\",0,ROUND(AJ39-0.04999,1)-AJ39+AM39)","v":0},{"$f":"IF(VLOOKUP(AF39,Group,7,FALSE)=\"\",\"\",VLOOKUP(AF39,Group,7,FALSE))","v":""},null,"X"]
[null,"Membrane- Sheet",null,null,"3' 2-5/8\" x 2' 7-3/8\"",null,"DHPS5MA",null,null,null,null,null,null,null,null,"(8.40 SF/Sheet)","Stock",null,{"$f":"IF(Suggested=\"Yes\",AA40,AG40)","v":21.55},"Sheet",{"$f":"+Instructions!$B$3","v":"N"},null,{"$f":"+Instructions!$C$22","v":0},{"$f":"ROUND($AA40*(1-W40)+0.004999,2)","v":21.55},null,"YES",21.55,{"$f":"+W40","v":0},{"$f":"+X40","v":21.55},{"$f":"(AG40-AC40)/AG40","v":0},null,2,{"$f":"SUM(AJ40:AL40)+AE40","v":21.55},null,null,{"$f":"ROUND(AC40/(1-VLOOKUP(AF40,Group,2,FALSE)),2)","v":21.55},{"$f":"IF(VLOOKUP(AF40,Group,5,FALSE)=\"YES\",VLOOKUP(ROUND(ROUND(AJ40,1)-AJ40,2),Round,2,FALSE)+VLOOKUP(AF40,Group,6,FALSE),0)","v":0},{"$f":"IF(VLOOKUP(AF40,Group,7,FALSE)=\"\",0,ROUND(AJ40-0.04999,1)-AJ40+AM40)","v":0},{"$f":"IF(VLOOKUP(AF40,Group,7,FALSE)=\"\",\"\",VLOOKUP(AF40,Group,7,FALSE))","v":""},null,"X"]
[]
[null,null,"DITRA-HEAT-DUO",null,null,null," ",null," ",null,null," ",null,null,null,null,null,"Item # Lookup:","SHDHD8",null,null,null,null,null,null,null,null,null,null,null,null,null,null,null,null,null,null,null,null,null,"X"]
[null,null,null,null,null,null,null,null,null,null,null,null,null,null,null,null,null,null,null,null,null,null,null,null,null,null,null,null,null,null,null,null,null,null,null,null,null,null,null,null,"X"]
[null,null,null,null,"DITRA-HEAT-DUO offers the same functions as DITRA-HEAT, but features a thicker bonding fleece that adds two more benefits, while still supporting",null,null,null,null,null,null,null,null,null,null,null,null,null,null,null,null,null,null,null,null,null,null,null,null,null,null,null,null,null,null,null,null,null,null,null,"X"]
[null,null,null,null,"the covering to ensure a lasting installation:  DITRA-HEAT-DUO reduces impact sound transmission through floor-ceiling assemblies, making it ideal for",null,null,null,null,null,null,null,null,null,null,null,null,null,null,null,null,null,null,null,null,null,null,null,null,null,null,null,null,null,null,null,null,null,null,null,"X"]
[null,null,null,null,"multi-story construction.  DITRA-HEAT-DUO provides a ΔIIC contribution of 20, when tested per ASTM E2179 in a thin-set assembly with porcelain tile.",null,null,null,null,null,null,null,null,null,null,null,null,null,null,null,null,null,null,null,null,null,null,null,null,null,null,null,null,null,null,null,null,null,null,null,"X"]
[null,null,null,null,"DITRA-HEAT-DUO reduces heat loss to the substrate to improve the floor warming response time over concrete substrates by up to 70%.  The thickness",null,null,null,null,null,null,null,null,null,null,null,null,null,null,null,null,null,null,null,null,null,null,null,null,null,null,null,null,null,null,null,null,null,null,null,"X"]
[null,null,null,null,"of the mat, including the stud structure is 5/16\".",null,null,null,null,null,null,null,null,null,null,null,null,null,null,null,null,null,null,null,null,null,null,null,null,null,null,null,null,null,null,null,null,null,null,null,"X"]
[null,null,null,null,null,null,null,null,null,null,null,null,null,null,null,null,null,null,null,null,null,null,null,null,null,null,null,null,null,null,null,null,null,null,null,null,null,null,null,null,"X"]
[null,"Membrane- Roll",null,null,"3' 2-5/8\" x 33' 6-1/2\"",null,"DHD810M",null,null,null,null,null,null,null,null,"(108.00 SF/Roll)","Stock",null,{"$f":"IF(Suggested=\"Yes\",AA50,AG50)","v":305.55},"Roll",{"$f":"+Instructions!$B$3","v":"N"},null,{"$f":"+Instructions!$C$22","v":0},{"$f":"ROUND($AA50*(1-W50)+0.004999,2)","v":305.55},null,"YES",305.55,{"$f":"+W50","v":0},{"$f":"+X50","v":305.55},{"$f":"(AG50-AC50)/AG50","v":0},null,1,{"$f":"SUM(AJ50:AL50)+AE50","v":305.55},null,null,{"$f":"ROUND(AC50/(1-VLOOKUP(AF50,Group,2,FALSE)),2)","v":305.55},{"$f":"IF(VLOOKUP(AF50,Group,5,FALSE)=\"YES\",VLOOKUP(ROUND(ROUND(AJ50,1)-AJ50,2),Round,2,FALSE)+VLOOKUP(AF50,Group,6,FALSE),0)","v":0},{"$f":"IF(VLOOKUP(AF50,Group,7,FALSE)=\"\",0,ROUND(AJ50-0.04999,1)-AJ50+AM50)","v":0},{"$f":"IF(VLOOKUP(AF50,Group,7,FALSE)=\"\",\"\",VLOOKUP(AF50,Group,7,FALSE))","v":""},null,"X"]
[null,"Membrane- Sheet",null,null,"3' 2-5/8\" x 2' 7-3/8\"",null,"DHD8MA",null,null,null,null,null,null,null,null,"(8.40 SF/Sheet)","Stock",null,{"$f":"IF(Suggested=\"Yes\",AA51,AG51)","v":24.9},"Sheet",{"$f":"+Instructions!$B$3","v":"N"},null,{"$f":"+Instructions!$C$22","v":0},{"$f":"ROUND($AA51*(1-W51)+0.004999,2)","v":24.9},null,"YES",24.9,{"$f":"+W51","v":0},{"$f":"+X51","v":24.9},{"$f":"(AG51-AC51)/AG51","v":0},null,2,{"$f":"SUM(AJ51:AL51)+AE51","v":24.9},null,null,{"$f":"ROUND(AC51/(1-VLOOKUP(AF51,Group,2,FALSE)),2)","v":24.9},{"$f":"IF(VLOOKUP(AF51,Group,5,FALSE)=\"YES\",VLOOKUP(ROUND(ROUND(AJ51,1)-AJ51,2),Round,2,FALSE)+VLOOKUP(AF51,Group,6,FALSE),0)","v":0},{"$f":"IF(VLOOKUP(AF51,Group,7,FALSE)=\"\",0,ROUND(AJ51-0.04999,1)-AJ51+AM51)","v":0},{"$f":"IF(VLOOKUP(AF51,Group,7,FALSE)=\"\",\"\",VLOOKUP(AF51,Group,7,FALSE))","v":""},null,"X"]
[]
[null,null,"DITRA-HEAT-DUO-PS",null,null,null," ",null," ",null,null," ",null,null,null,null,null,"Item # Lookup:","SHDHDPS8",null,null,null,null,null,null,null,null,null,null,null,null,null,null,null,null,null,null,null,null,null,"X"]
[null,null,null,null,null,null,null,null,null,null,null,null,null,null,null,null,null,null,null,null,null,null,null,null,null,null,null,null,null,null,null,null,null,null,null,null,null,null,null,null,"X"]
[null,null,null,null,"DITRA-HEAT-DUO-PS is a peel and stick membrane that features a pressure-sensitive adhesive (PSA) to bond the membrane to the substrate,",null,null,null,null,null,null,null,null,null,null,null,null,null,null,null,null,null,null,null,null,null,null,null,null,null,null,null,null,null,null,null,null,null,null,null,"X"]
[null,null,null,null,"eliminating the need for thin-set mortar.  Quick and easy to install, DITRA-HEAT-DUO-PS is an uncoupling membrane with an integrated bonding",null,null,null,null,null,null,null,null,null,null,null,null,null,null,null,null,null,null,null,null,null,null,null,null,null,null,null,null,null,null,null,null,null,null,null,"X"]
[null,null,null,null,"fleece that provides sound control, as well as a thermal break.  Optionally, the system can be customized with of DITRA-HEAT-HK floor heating",null,null,null,null,null,null,null,null,null,null,null,null,null,null,null,null,null,null,null,null,null,null,null,null,null,null,null,null,null,null,null,null,null,null,null,"X"]
[null,null,null,null,"cables to create a warm tiled floor.",null,null,null,null,null,null,null,null,null,null,null,null,null,null,null,null,null,null,null,null,null,null,null,null,null,null,null,null,null,null,null,null,null,null,null,"X"]
[null,null,null,null,null,null,null,null,null,null,null,null,null,null,null,null,null,null,null,null,null,null,null,null,null,null,null,null,null,null,null,null,null,null,null,null,null,null,null,null,"X"]
[null,"Membrane- Roll",null,null,"3' 2-5/8\" x 33' 6-1/2\"",null,"DHDPS810M",null,null,null,null,null,null,null,null,"(108.00 SF/Roll)",null,null,{"$f":"IF(Suggested=\"Yes\",AA60,AG60)","v":381.95},"Roll",{"$f":"+Instructions!$B$3","v":"N"},null,{"$f":"+Instructions!$C$22","v":0},{"$f":"ROUND($AA60*(1-W60)+0.004999,2)","v":381.95},null,"YES",381.95,{"$f":"+W60","v":0},{"$f":"+X60","v":381.95},{"$f":"(AG60-AC60)/AG60","v":0},null,1,{"$f":"SUM(AJ60:AL60)+AE60","v":381.95},null,null,{"$f":"ROUND(AC60/(1-VLOOKUP(AF60,Group,2,FALSE)),2)","v":381.95},{"$f":"IF(VLOOKUP(AF60,Group,5,FALSE)=\"YES\",VLOOKUP(ROUND(ROUND(AJ60,1)-AJ60,2),Round,2,FALSE)+VLOOKUP(AF60,Group,6,FALSE),0)","v":0},{"$f":"IF(VLOOKUP(AF60,Group,7,FALSE)=\"\",0,ROUND(AJ60-0.04999,1)-AJ60+AM60)","v":0},{"$f":"IF(VLOOKUP(AF60,Group,7,FALSE)=\"\",\"\",VLOOKUP(AF60,Group,7,FALSE))","v":""},null,"X"]
[null,"Membrane- Sheet",null,null,"3' 2-5/8\" x 2' 7-3/8\"",null,"DHDPS8MA",null,null,null,null,null,null,null,null,"(8.40 SF/Sheet)",null,null,{"$f":"IF(Suggested=\"Yes\",AA61,AG61)","v":31.1},"Sheet",{"$f":"+Instructions!$B$3","v":"N"},null,{"$f":"+Instructions!$C$22","v":0},{"$f":"ROUND($AA61*(1-W61)+0.004999,2)","v":31.1},null,"YES",31.1,{"$f":"+W61","v":0},{"$f":"+X61","v":31.1},{"$f":"(AG61-AC61)/AG61","v":0},null,2,{"$f":"SUM(AJ61:AL61)+AE61","v":31.1},null,null,{"$f":"ROUND(AC61/(1-VLOOKUP(AF61,Group,2,FALSE)),2)","v":31.1},{"$f":"IF(VLOOKUP(AF61,Group,5,FALSE)=\"YES\",VLOOKUP(ROUND(ROUND(AJ61,1)-AJ61,2),Round,2,FALSE)+VLOOKUP(AF61,Group,6,FALSE),0)","v":0},{"$f":"IF(VLOOKUP(AF61,Group,7,FALSE)=\"\",0,ROUND(AJ61-0.04999,1)-AJ61+AM61)","v":0},{"$f":"IF(VLOOKUP(AF61,Group,7,FALSE)=\"\",\"\",VLOOKUP(AF61,Group,7,FALSE))","v":""},null,"X"]
[]
[null,null,"DITRA-HEAT-E-HK",null,null,null,null,null,null,null,null,null,null,null,null,null,null,"Item # Lookup:","SHDHEH",null,null,null,null,null,null,null,null,null,null,null,null,null,null,null,null,null,null,null,null,null,"X"]
[null,null,null,null,null,null,null,null,null,null,null,null,null,null,null,null,null,null,null,null,null,null,null,null,null,null,null,null,null,null,null,null,null,null,null,null,null,null,null,null,"X"]
[null,null,null,null,"DITRA-HEAT-E-HK are twisted pair heating cables designed for integration with the DITRA-HEAT uncoupling membrane in interior floor warming applications.",null,null,null,null,null,null,null,null,null,null,null,null,null,null,null,null,null,null,null,null,null,null,null,null,null,null,null,null,null,null,null,null,null,null,null,"X"]
[null,null,null,null,"The cables can be installed without returning to the thermostat & produce virtually zero electromagnetic fields.  Each heating cable includes 1 floor temperature",null,null,null,null,null,null,null,null,null,null,null,null,null,null,null,null,null,null,null,null,null,null,null,null,null,null,null,null,null,null,null,null,null,null,null,"X"]
[null,null,null,null,"sensor compatible with the Schluter DITRA-HEAT-E thermostats and features an approximately 7 foot long cold lead. ",null,null,null,null,null,null,null,null,null,null,null,null,null,null,null,null,null,null,null,null,null,null,null,null,null,null,null,null,null,null,null,null,null,null,null,"X"]
[null,null,null,null,null,null,null,null,null,null,null,null,null,null,null,null,null,null,null,null,null,null,null,null,null,null,null,null,null,null,null,null,null,null,null,null,null,null,null,null,"X"]
[null,null,null,null,null,null,"120 V Heating Cable",null,null,null,null,null,null,null,null,null,null,null,null,null,null,null,null,null,null,null,null,null,null,null,null,null,null,null,null,null,null,null,null,null,"X"]
[]
[null,null,null,null,"Length",null,null,null,null,null,"Amps",null,"Total Power",null,null,"Area/SF",null,null,null,null,null,null,null,null,null,null,null,null,null,null,null,null,null,null,null,null,null,null,null,null,"X"]
[]
[null,"Cable & Kits",null,null,"35.3'",null,"DHEHK12011",null,null,null,1.1000000000000001,null,"135 W",null,null,10.7,"Stock",null,{"$f":"IF(Suggested=\"Yes\",AA73,AG73)","v":150.69999999999999},"EA",{"$f":"+Instructions!$B$3","v":"N"},null,{"$f":"+Instructions!$C$22","v":0},{"$f":"ROUND($AA73*(1-W73)+0.004999,2)","v":150.69999999999999},null,"YES",150.69999999999999,{"$f":"+W73","v":0},{"$f":"+X73","v":150.69999999999999},{"$f":"(AG73-AC73)/AG73","v":0},null,3,{"$f":"SUM(AJ73:AL73)+AE73","v":150.69999999999999},null,null,{"$f":"ROUND(AC73/(1-VLOOKUP(AF73,Group,2,FALSE)),2)","v":150.69999999999999},{"$f":"IF(VLOOKUP(AF73,Group,5,FALSE)=\"YES\",VLOOKUP(ROUND(ROUND(AJ73,1)-AJ73,2),Round,2,FALSE)+VLOOKUP(AF73,Group,6,FALSE),0)","v":0},{"$f":"IF(VLOOKUP(AF73,Group,7,FALSE)=\"\",0,ROUND(AJ73-0.04999,1)-AJ73+AM73)","v":0},{"$f":"IF(VLOOKUP(AF73,Group,7,FALSE)=\"\",\"\",VLOOKUP(AF73,Group,7,FALSE))","v":""},null,"X"]
[null,"Cable & Kits",null,null,"52.9'",null,"DHEHK12016",null,null,null,1.7,null,"203 W",null,null,16,"Stock",null,{"$f":"IF(Suggested=\"Yes\",AA74,AG74)","v":168.05},"EA",{"$f":"+Instructions!$B$3","v":"N"},null,{"$f":"+Instructions!$C$22","v":0},{"$f":"ROUND($AA74*(1-W74)+0.004999,2)","v":168.05},null,"YES",168.05,{"$f":"+W74","v":0},{"$f":"+X74","v":168.05},{"$f":"(AG74-AC74)/AG74","v":0},null,3,{"$f":"SUM(AJ74:AL74)+AE74","v":168.05},null,null,{"$f":"ROUND(AC74/(1-VLOOKUP(AF74,Group,2,FALSE)),2)","v":168.05},{"$f":"IF(VLOOKUP(AF74,Group,5,FALSE)=\"YES\",VLOOKUP(ROUND(ROUND(AJ74,1)-AJ74,2),Round,2,FALSE)+VLOOKUP(AF74,Group,6,FALSE),0)","v":0},{"$f":"IF(VLOOKUP(AF74,Group,7,FALSE)=\"\",0,ROUND(AJ74-0.04999,1)-AJ74+AM74)","v":0},{"$f":"IF(VLOOKUP(AF74,Group,7,FALSE)=\"\",\"\",VLOOKUP(AF74,Group,7,FALSE))","v":""},null,"X"]
[null,"Cable & Kits",null,null,"70.5'",null,"DHEHK12021",null,null,null,2.2999999999999998,null,"270 W",null,null,21.3,"Stock",null,201.6,"EA",{"$f":"+Instructions!$B$3","v":"N"},null,{"$f":"+Instructions!$C$22","v":0},201.6,null,"YES",201.6,0,201.6,0,null,3,201.6,null,null,201.6,0,0,"",null,"X"]
[null,"Cable & Kits",null,null,"88.2'",null,"DHEHK12027",null,null,null,2.8,null,"338 W",null,null,26.7,"Stock",null,216.5,"EA",{"$f":"+Instructions!$B$3","v":"N"},null,{"$f":"+Instructions!$C$22","v":0},216.5,null,"YES",216.5,0,216.5,0,null,3,216.5,null,null,216.5,0,0,"",null,"X"]
[null,"Cable & Kits",null,null,"105.8'",null,"DHEHK12032",null,null,null,3.4,null,"405 W",null,null,32,"Stock",null,234.25,"EA",{"$f":"+Instructions!$B$3","v":"N"},null,{"$f":"+Instructions!$C$22","v":0},234.25,null,"YES",234.25,0,234.25,0,null,3,234.25,null,null,234.25,0,0,"",null,"X"]
[null,"Cable & Kits",null,null,"124.1'",null,"DHEHK12038",null,null,null,4,null,"475 W",null,null,37.5,"Stock",null,251,"EA",{"$f":"+Instructions!$B$3","v":"N"},null,{"$f":"+Instructions!$C$22","v":0},251,null,"YES",251,0,251,0,null,3,251,null,null,251,0,0,"",null,"X"]
[null,"Cable & Kits",null,null,"141.1'",null,"DHEHK12043",null,null,null,4.5,null,"540 W",null,null,42.7,"Stock",null,265.7,"EA",{"$f":"+Instructions!$B$3","v":"N"},null,{"$f":"+Instructions!$C$22","v":0},265.7,null,"YES",265.7,0,265.7,0,null,3,265.7,null,null,265.7,0,0,"",null,"X"]
[null,"Cable & Kits",null,null,"169.8'",null,"DHEHK12051",null,null,null,5.4,null,"650 W",null,null,51.4,"Stock",null,{"$f":"IF(Suggested=\"Yes\",AA80,AG80)","v":298.39999999999998},"EA",{"$f":"+Instructions!$B$3","v":"N"},null,{"$f":"+Instructions!$C$22","v":0},{"$f":"ROUND($AA80*(1-W80)+0.004999,2)","v":298.39999999999998},null,"YES",298.39999999999998,{"$f":"+W80","v":0},{"$f":"+X80","v":298.39999999999998},{"$f":"(AG80-AC80)/AG80","v":0},null,3,{"$f":"SUM(AJ80:AL80)+AE80","v":298.39999999999998},null,null,{"$f":"ROUND(AC80/(1-VLOOKUP(AF80,Group,2,FALSE)),2)","v":298.39999999999998},{"$f":"IF(VLOOKUP(AF80,Group,5,FALSE)=\"YES\",VLOOKUP(ROUND(ROUND(AJ80,1)-AJ80,2),Round,2,FALSE)+VLOOKUP(AF80,Group,6,FALSE),0)","v":0},{"$f":"IF(VLOOKUP(AF80,Group,7,FALSE)=\"\",0,ROUND(AJ80-0.04999,1)-AJ80+AM80)","v":0},{"$f":"IF(VLOOKUP(AF80,Group,7,FALSE)=\"\",\"\",VLOOKUP(AF80,Group,7,FALSE))","v":""},null,"X"]
[null,"Cable & Kits",null,null,"212.9'",null,"DHEHK12064",null,null,null,6.8,null,"815 W",null,null,64.400000000000006,"Stock",null,330.95,"EA",{"$f":"+Instructions!$B$3","v":"N"},null,{"$f":"+Instructions!$C$22","v":0},330.95,null,"YES",330.95,0,330.95,0,null,3,330.95,null,null,330.95,0,0,"",null,"X"]
[null,"Cable & Kits",null,null,"240.2'",null,"DHEHK12073",null,null,null,7.7,null,"920 W",null,null,72.7,"Stock",null,363.75,"EA",{"$f":"+Instructions!$B$3","v":"N"},null,{"$f":"+Instructions!$C$22","v":0},363.75,null,"YES",363.75,0,363.75,0,null,3,363.75,null,null,363.75,0,0,"",null,"X"]
[null,"Cable & Kits",null,null,"275.5'",null,"DHEHK12083",null,null,null,8.8000000000000007,null,"1055 W",null,null,83.3,"Stock",null,408,"EA",{"$f":"+Instructions!$B$3","v":"N"},null,{"$f":"+Instructions!$C$22","v":0},408,null,"YES",408,0,408,0,null,3,408,null,null,408,0,0,"",null,"X"]
[null,"Cable & Kits",null,null,"303.0'",null,"DHEHK12092",null,null,null,9.6999999999999993,null,"1160 W",null,null,91.7,"Stock",null,445.4,"EA",{"$f":"+Instructions!$B$3","v":"N"},null,{"$f":"+Instructions!$C$22","v":0},445.4,null,"YES",445.4,0,445.4,0,null,3,445.4,null,null,445.4,0,0,"",null,"X"]
[null,"Cable & Kits",null,null,"336.9'",null,"DHEHK120102",null,null,null,10.7,null,"1290 W",null,null,101.9,"Stock",null,490.1,"EA",{"$f":"+Instructions!$B$3","v":"N"},null,{"$f":"+Instructions!$C$22","v":0},490.1,null,"YES",490.1,0,490.1,0,null,3,490.1,null,null,490.1,0,0,"",null,"X"]
[null,"Cable & Kits",null,null,"372.2'",null,"DHEHK120113",null,null,null,11.9,null,"1425 W",null,null,112.6,"Stock",null,{"$f":"IF(Suggested=\"Yes\",AA86,AG86)","v":535.25},"EA",{"$f":"+Instructions!$B$3","v":"N"},null,{"$f":"+Instructions!$C$22","v":0},{"$f":"ROUND($AA86*(1-W86)+0.004999,2)","v":535.25},null,"YES",535.25,{"$f":"+W86","v":0},{"$f":"+X86","v":535.25},{"$f":"(AG86-AC86)/AG86","v":0},null,3,{"$f":"SUM(AJ86:AL86)+AE86","v":535.25},null,null,{"$f":"ROUND(AC86/(1-VLOOKUP(AF86,Group,2,FALSE)),2)","v":535.25},{"$f":"IF(VLOOKUP(AF86,Group,5,FALSE)=\"YES\",VLOOKUP(ROUND(ROUND(AJ86,1)-AJ86,2),Round,2,FALSE)+VLOOKUP(AF86,Group,6,FALSE),0)","v":0},{"$f":"IF(VLOOKUP(AF86,Group,7,FALSE)=\"\",0,ROUND(AJ86-0.04999,1)-AJ86+AM86)","v":0},{"$f":"IF(VLOOKUP(AF86,Group,7,FALSE)=\"\",\"\",VLOOKUP(AF86,Group,7,FALSE))","v":""},null,"X"]
[null,"Cable & Kits",null,null,"444.0'",null,"DHEHK120134",null,null,null,14.2,null,"1700 W",null,null,134.30000000000001,"Stock",null,{"$f":"IF(Suggested=\"Yes\",AA87,AG87)","v":585.65},"EA",{"$f":"+Instructions!$B$3","v":"N"},null,{"$f":"+Instructions!$C$22","v":0},{"$f":"ROUND($AA87*(1-W87)+0.004999,2)","v":585.65},null,"YES",585.65,{"$f":"+W87","v":0},{"$f":"+X87","v":585.65},{"$f":"(AG87-AC87)/AG87","v":0},null,3,{"$f":"SUM(AJ87:AL87)+AE87","v":585.65},null,null,{"$f":"ROUND(AC87/(1-VLOOKUP(AF87,Group,2,FALSE)),2)","v":585.65},{"$f":"IF(VLOOKUP(AF87,Group,5,FALSE)=\"YES\",VLOOKUP(ROUND(ROUND(AJ87,1)-AJ87,2),Round,2,FALSE)+VLOOKUP(AF87,Group,6,FALSE),0)","v":0},{"$f":"IF(VLOOKUP(AF87,Group,7,FALSE)=\"\",0,ROUND(AJ87-0.04999,1)-AJ87+AM87)","v":0},{"$f":"IF(VLOOKUP(AF87,Group,7,FALSE)=\"\",\"\",VLOOKUP(AF87,Group,7,FALSE))","v":""},null,"X"]
[]
[null,null,"continued on next page"]
[null,null,"DITRA-HEAT-E-HK - continued",null,null,null,null,null,null,null,null,null,null,null,null,null,null,"Item # Lookup:","SHDHEH"]
[null,null,null,null,null,null,null,null,null,null,null,null,null,null,null,null,null,null,null,null,null,null,null,null,null,null,null,null,null,null,null,null,null,null,null,null,null,null,null,null,"X"]
[null,null,null,null,null,null,"240 V Heating Cable",null,null,null,null,null,null,null,null,null,null,null,null,null,null,null,null,null,null,null,null,null,null,null,null,null,null,null,null,null,null,null,null,null,"X"]
[]
[null,null,null,null,"Length",null,null,null,null,null,"Amps",null,"Total Power",null,null,"Area/SF",null,null,null,null,null,null,null,null,null,null,null,null,null,null,null,null,null,null,null,null,null,null,null,null,"X"]
[]
[null,"Cable & Kits",null,null,"35.3'",null,"DHEHK24011",null,null,null,0.6,null,"135 W",null,null,10.7,null,null,{"$f":"IF(Suggested=\"Yes\",AA96,AG96)","v":156.65},"EA",{"$f":"+Instructions!$B$3","v":"N"},null,{"$f":"+Instructions!$C$22","v":0},{"$f":"ROUND($AA96*(1-W96)+0.004999,2)","v":156.65},null,"YES",156.65,{"$f":"+W96","v":0},{"$f":"+X96","v":156.65},{"$f":"(AG96-AC96)/AG96","v":0},null,3,{"$f":"SUM(AJ96:AL96)+AE96","v":156.65},null,null,{"$f":"ROUND(AC96/(1-VLOOKUP(AF96,Group,2,FALSE)),2)","v":156.65},{"$f":"IF(VLOOKUP(AF96,Group,5,FALSE)=\"YES\",VLOOKUP(ROUND(ROUND(AJ96,1)-AJ96,2),Round,2,FALSE)+VLOOKUP(AF96,Group,6,FALSE),0)","v":0},{"$f":"IF(VLOOKUP(AF96,Group,7,FALSE)=\"\",0,ROUND(AJ96-0.04999,1)-AJ96+AM96)","v":0},{"$f":"IF(VLOOKUP(AF96,Group,7,FALSE)=\"\",\"\",VLOOKUP(AF96,Group,7,FALSE))","v":""},null,"X"]
[null,"Cable & Kits",null,null,"53.1'",null,"DHEHK24016",null,null,null,0.8,null,"203 W",null,null,16.100000000000001,null,null,174.5,"EA",{"$f":"+Instructions!$B$3","v":"N"},null,{"$f":"+Instructions!$C$22","v":0},174.5,null,"YES",174.5,0,174.5,0,null,3,174.5,null,null,174.5,0,0,"",null,"X"]
[null,"Cable & Kits",null,null,"70.6'",null,"DHEHK24021",null,null,null,1.1000000000000001,null,"270 W",null,null,21.4,null,null,209.5,"EA",{"$f":"+Instructions!$B$3","v":"N"},null,{"$f":"+Instructions!$C$22","v":0},209.5,null,"YES",209.5,0,209.5,0,null,3,209.5,null,null,209.5,0,0,"",null,"X"]
[null,"Cable & Kits",null,null,"88.2'",null,"DHEHK24027",null,null,null,1.4,null,"338 W",null,null,26.7,null,null,224.95,"EA",{"$f":"+Instructions!$B$3","v":"N"},null,{"$f":"+Instructions!$C$22","v":0},224.95,null,"YES",224.95,0,224.95,0,null,3,224.95,null,null,224.95,0,0,"",null,"X"]
[null,"Cable & Kits",null,null,"105.8'",null,"DHEHK24032",null,null,null,1.7,null,"405 W",null,null,32,null,null,243.4,"EA",{"$f":"+Instructions!$B$3","v":"N"},null,{"$f":"+Instructions!$C$22","v":0},243.4,null,"YES",243.4,0,243.4,0,null,3,243.4,null,null,243.4,0,0,"",null,"X"]
[null,"Cable & Kits",null,null,"124.1'",null,"DHEHK24038",null,null,null,2,null,"475 W",null,null,37.5,null,null,260.89999999999998,"EA",{"$f":"+Instructions!$B$3","v":"N"},null,{"$f":"+Instructions!$C$22","v":0},260.89999999999998,null,"YES",260.89999999999998,0,260.89999999999998,0,null,3,260.89999999999998,null,null,260.89999999999998,0,0,"",null,"X"]
[null,"Cable & Kits",null,null,"141.0'",null,"DHEHK24043",null,null,null,2.2999999999999998,null,"540 W",null,null,42.6,null,null,276.14999999999998,"EA",{"$f":"+Instructions!$B$3","v":"N"},null,{"$f":"+Instructions!$C$22","v":0},276.14999999999998,null,"YES",276.14999999999998,0,276.14999999999998,0,null,3,276.14999999999998,null,null,276.14999999999998,0,0,"",null,"X"]
[null,"Cable & Kits",null,null,"176.3'",null,"DHEHK24053",null,null,null,2.8,null,"675 W",null,null,53.3,null,null,310.05,"EA",{"$f":"+Instructions!$B$3","v":"N"},null,{"$f":"+Instructions!$C$22","v":0},310.05,null,"YES",310.05,0,310.05,0,null,3,310.05,null,null,310.05,0,0,"",null,"X"]
[null,"Cable & Kits",null,null,"211.6'",null,"DHEHK24064",null,null,null,3.4,null,"810 W",null,null,64,null,null,344.05,"EA",{"$f":"+Instructions!$B$3","v":"N"},null,{"$f":"+Instructions!$C$22","v":0},344.05,null,"YES",344.05,0,344.05,0,null,3,344.05,null,null,344.05,0,0,"",null,"X"]
[null,"Cable & Kits",null,null,"248.2'",null,"DHEHK24075",null,null,null,4,null,"950 W",null,null,75.099999999999994,null,null,377.85,"EA",{"$f":"+Instructions!$B$3","v":"N"},null,{"$f":"+Instructions!$C$22","v":0},377.85,null,"YES",377.85,0,377.85,0,null,3,377.85,null,null,377.85,0,0,"",null,"X"]
[null,"Cable & Kits",null,null,"282.1'",null,"DHEHK24085",null,null,null,4.5,null,"1080 W",null,null,85.3,null,null,412.9,"EA",{"$f":"+Instructions!$B$3","v":"N"},null,{"$f":"+Instructions!$C$22","v":0},412.9,null,"YES",412.9,0,412.9,0,null,3,412.9,null,null,412.9,0,0,"",null,"X"]
[null,"Cable & Kits",null,null,"339.4'",null,"DHEHK240103",null,null,null,5.4,null,"1300 W",null,null,102.7,null,null,464.35,"EA",{"$f":"+Instructions!$B$3","v":"N"},null,{"$f":"+Instructions!$C$22","v":0},464.35,null,"YES",464.35,0,464.35,0,null,3,464.35,null,null,464.35,0,0,"",null,"X"]
[null,"Cable & Kits",null,null,"425.8'",null,"DHEHK240129",null,null,null,6.8,null,"1630 W",null,null,128.80000000000001,null,null,518.65,"EA",{"$f":"+Instructions!$B$3","v":"N"},null,{"$f":"+Instructions!$C$22","v":0},518.65,null,"YES",518.65,0,518.65,0,null,3,518.65,null,null,518.65,0,0,"",null,"X"]
[null,"Cable & Kits",null,null,"480.5'",null,"DHEHK240145",null,null,null,7.7,null,"1840 W",null,null,145.30000000000001,null,null,564.04999999999995,"EA",{"$f":"+Instructions!$B$3","v":"N"},null,{"$f":"+Instructions!$C$22","v":0},564.04999999999995,null,"YES",564.04999999999995,0,564.04999999999995,0,null,3,564.04999999999995,null,null,564.04999999999995,0,0,"",null,"X"]
[null,"Cable & Kits",null,null,"551.0'",null,"DHEHK240167",null,null,null,8.8000000000000007,null,"2110 W",null,null,166.7,null,null,608.20000000000005,"EA",{"$f":"+Instructions!$B$3","v":"N"},null,{"$f":"+Instructions!$C$22","v":0},608.20000000000005,null,"YES",608.20000000000005,0,608.20000000000005,0,null,3,608.20000000000005,null,null,608.20000000000005,0,0,"",null,"X"]
[null,"Cable & Kits",null,null,"605.9'",null,"DHEHK240183",null,null,null,9.6999999999999993,null,"2320 W",null,null,183.3,null,null,664.4,"EA",{"$f":"+Instructions!$B$3","v":"N"},null,{"$f":"+Instructions!$C$22","v":0},664.4,null,"YES",664.4,0,664.4,0,null,3,664.4,null,null,664.4,0,0,"",null,"X"]
[null,"Cable & Kits",null,null,"673.8'",null,"DHEHK240204",null,null,null,10.7,null,"2580 W",null,null,203.8,null,null,715.4,"EA",{"$f":"+Instructions!$B$3","v":"N"},null,{"$f":"+Instructions!$C$22","v":0},715.4,null,"YES",715.4,0,715.4,0,null,3,715.4,null,null,715.4,0,0,"",null,"X"]
[null,"Cable & Kits",null,null,"744.4'",null,"DHEHK240225",null,null,null,11.9,null,"2850 W",null,null,225.2,null,null,768.65,"EA",{"$f":"+Instructions!$B$3","v":"N"},null,{"$f":"+Instructions!$C$22","v":0},768.65,null,"YES",768.65,0,768.65,0,null,3,768.65,null,null,768.65,0,0,"",null,"X"]
[null,null,null,null,null,null,null,null,null,null,null,null,null,null,null,null,null,null,null,null,null,null,null,null,null,null,null,null,null,null,null,null,null,null,null,null,null,null,null,null,"X"]
[null,"Cable & Kits",null,null,null,null,"DHEHKRK",null,null,"Repair Kit",null,null,null,null,null,null,null,"a",{"$f":"IF(Suggested=\"Yes\",AA115,AG115)","v":24.55},"EA",{"$f":"+Instructions!$B$3","v":"N"},null,{"$f":"+Instructions!$C$22","v":0},{"$f":"ROUND($AA115*(1-W115)+0.004999,2)","v":24.55},null,"YES",24.55,{"$f":"+W115","v":0},{"$f":"+X115","v":24.55},{"$f":"(AG115-AC115)/AG115","v":0},null,3,{"$f":"SUM(AJ115:AL115)+AE115","v":24.55},null,null,{"$f":"ROUND(AC115/(1-VLOOKUP(AF115,Group,2,FALSE)),2)","v":24.55},{"$f":"IF(VLOOKUP(AF115,Group,5,FALSE)=\"YES\",VLOOKUP(ROUND(ROUND(AJ115,1)-AJ115,2),Round,2,FALSE)+VLOOKUP(AF115,Group,6,FALSE),0)","v":0},{"$f":"IF(VLOOKUP(AF115,Group,7,FALSE)=\"\",0,ROUND(AJ115-0.04999,1)-AJ115+AM115)","v":0},{"$f":"IF(VLOOKUP(AF115,Group,7,FALSE)=\"\",\"\",VLOOKUP(AF115,Group,7,FALSE))","v":""},null,"X"]
[]
[null,null,null,"Notes:","a) Schluter®-DITRA-HEAT-E-HK-RK is a repair kit for DITRA-HEAT-E-HK heating cables.  The kit contains all the material to replace one",null,null,null,null,null,null,null,null,null,null,null,null,null,null,null,null,null,null,null,null,null,null,null,null,null,null,null,null,null,null,null,null,null,null,null,"X"]
[null,null,null,null,"section of heating cable (gray section) up to 10\" long or less in the event of damage, such as cuts by other trades during installation.",null,null,null,null,null,null,null,null,null,null,null,null,null,null,null,null,null,null,null,null,null,null,null,null,null,null,null,null,null,null,null,null,null,null,null,"X"]
[null,null,null,null,null,null,null,null,null,null,null,null,null,null,null,null,null,null,null,null,null,null,null,null,null,null,null,null,null,null,null,null,null,null,null,null,null,null,null,null,"X"]
[null,null,"DITRA-HEAT-E",null,null,null,null,null," ",null,null,null,null,null,null,null,null,"Item # Lookup:","SHDHER",null,null,null,null,null,null,null,null,null,null,null,null,null,null,null,null,null,null,null,null,null,"X"]
[null,null,null,null,null,null,null,null,null,null,null,null,null,null,null,null,null,null,null,null,null,null,null,null,null,null,null,null,null,null,null,null,null,null,null,null,null,null,null,null,"X"]
[null,null,null,null,"Digital thermostats to control the DITRA-HEAT-E-HK heating cables (either 120 V or 240 V).  The thermostats feature a 5 Ma built-in ground fault circuit",null,null,null,null,null,null,null,null,null,null,null,null,null,null,null,null,null,null,null,null,null,null,null,null,null,null,null,null,null,null,null,null,null,null,null,"X"]
[null,null,null,null,"interrupter (GFCI) & pilot light.  The programmable version features more than 250 pre-set programs & anticipated start function.  The non-programmable",null,null,null,null,null,null,null,null,null,null,null,null,null,null,null,null,null,null,null,null,null,null,null,null,null,null,null,null,null,null,null,null,null,null,null,"X"]
[null,null,null,null,"version features simple on/off & a smart mode which acts like a programmable thermostat by automatically lowering the temperature once per 24 hour",null,null,null,null,null,null,null,null,null,null,null,null,null,null,null,null,null,null,null,null,null,null,null,null,null,null,null,null,null,null,null,null,null,null,null,"X"]
[null,null,null,null,"period. ",null,null,null,null,null,null,null,null,null,null,null,null,null,null,null,null,null,null,null,null,null,null,null,null,null,null,null,null,null,null,null,null,null,null,null,"X"]
[null,null,null,null,null,null,null,null,null,null,null,null,null,null,null,null,null,null,null,null,null,null,null,null,null,null,null,null,null,null,null,null,null,null,null,null,null,null,null,null,"X"]
[null,"Thermostats",null,null,null,null,"DHERT103/BW",null,null,"Non-Programmable Thermostat",null,null,null,null,null,null,null,null,{"$f":"IF(Suggested=\"Yes\",AA127,AG127)","v":135.05000000000001},"EA",{"$f":"+Instructions!$B$3","v":"N"},null,{"$f":"+Instructions!$C$22","v":0},{"$f":"ROUND($AA127*(1-W127)+0.004999,2)","v":135.05000000000001},null,"YES",135.05000000000001,{"$f":"+W127","v":0},{"$f":"+X127","v":135.05000000000001},{"$f":"(AG127-AC127)/AG127","v":0},null,4,{"$f":"SUM(AJ127:AL127)+AE127","v":135.05000000000001},null,null,{"$f":"ROUND(AC127/(1-VLOOKUP(AF127,Group,2,FALSE)),2)","v":135.05000000000001},{"$f":"IF(VLOOKUP(AF127,Group,5,FALSE)=\"YES\",VLOOKUP(ROUND(ROUND(AJ127,1)-AJ127,2),Round,2,FALSE)+VLOOKUP(AF127,Group,6,FALSE),0)","v":0},{"$f":"IF(VLOOKUP(AF127,Group,7,FALSE)=\"\",0,ROUND(AJ127-0.04999,1)-AJ127+AM127)","v":0},{"$f":"IF(VLOOKUP(AF127,Group,7,FALSE)=\"\",\"\",VLOOKUP(AF127,Group,7,FALSE))","v":""},null,"X"]
[null,"Thermostats",null,null,null,null,"DHERT102/BW",null,null,"Programmable Touchscreen Thermostat",null,null,null,null,null,null,"Stock",null,{"$f":"IF(Suggested=\"Yes\",AA128,AG128)","v":192.45},"EA",{"$f":"+Instructions!$B$3","v":"N"},null,{"$f":"+Instructions!$C$22","v":0},{"$f":"ROUND($AA128*(1-W128)+0.004999,2)","v":192.45},null,"YES",192.45,{"$f":"+W128","v":0},{"$f":"+X128","v":192.45},{"$f":"(AG128-AC128)/AG128","v":0},null,4,{"$f":"SUM(AJ128:AL128)+AE128","v":192.45},null,null,{"$f":"ROUND(AC128/(1-VLOOKUP(AF128,Group,2,FALSE)),2)","v":192.45},{"$f":"IF(VLOOKUP(AF128,Group,5,FALSE)=\"YES\",VLOOKUP(ROUND(ROUND(AJ128,1)-AJ128,2),Round,2,FALSE)+VLOOKUP(AF128,Group,6,FALSE),0)","v":0},{"$f":"IF(VLOOKUP(AF128,Group,7,FALSE)=\"\",0,ROUND(AJ128-0.04999,1)-AJ128+AM128)","v":0},{"$f":"IF(VLOOKUP(AF128,Group,7,FALSE)=\"\",\"\",VLOOKUP(AF128,Group,7,FALSE))","v":""},null,"X"]
[]
[null,"Thermostats",null,null,null,null,"DHERR1/BW",null,null,"Power Module",null,null,null,null,null,null,"Stock","a",{"$f":"IF(Suggested=\"Yes\",AA130,AG130)","v":118.15},"EA",{"$f":"+Instructions!$B$3","v":"N"},null,{"$f":"+Instructions!$C$22","v":0},{"$f":"ROUND($AA130*(1-W130)+0.004999,2)","v":118.15},null,"YES",118.15,{"$f":"+W130","v":0},{"$f":"+X130","v":118.15},{"$f":"(AG130-AC130)/AG130","v":0},null,4,{"$f":"SUM(AJ130:AL130)+AE130","v":118.15},null,null,{"$f":"ROUND(AC130/(1-VLOOKUP(AF130,Group,2,FALSE)),2)","v":118.15},{"$f":"IF(VLOOKUP(AF130,Group,5,FALSE)=\"YES\",VLOOKUP(ROUND(ROUND(AJ130,1)-AJ130,2),Round,2,FALSE)+VLOOKUP(AF130,Group,6,FALSE),0)","v":0},{"$f":"IF(VLOOKUP(AF130,Group,7,FALSE)=\"\",0,ROUND(AJ130-0.04999,1)-AJ130+AM130)","v":0},{"$f":"IF(VLOOKUP(AF130,Group,7,FALSE)=\"\",\"\",VLOOKUP(AF130,Group,7,FALSE))","v":""},null,"X"]
[]
[null,null,null,"Note:","a) For large area installations, extends the power output by 15 Amps.",null,null,null,null,null,null,null,null,null,null,null,null,null,null,null,null,null,null,null,null,null,null,null,null,null,null,null,null,null,null,null,null,null,null,null,"X"]
[null,null,null,null,null,null,null,null,null,null,null,null,null,null,null,null,null,null,null,null,null,null,null,null,null,null,null,null,null,null,null,null,null,null,null,null,null,null,null,null,"X"]
[null,null,"DITRA-HEAT-E-RS1",null,null,null,null,null," ",null,null,null,null,null,null,null,null,"Item # Lookup:","SHDHER",null,null,null,null,null,null,null,null,null,null,null,null,null,null,null,null,null,null,null,null,null,"X"]
[null,null,null,null,null,null,null,null,null,null,null,null,null,null,null,null,null,null,null,null,null,null,null,null,null,null,null,null,null,null,null,null,null,null,null,null,null,null,null,null,"X"]
[null,null,null,null,"The DITRA-HEAT-E-RS1 smart thermostat for DITRA-HEAT floor warming systems features a sleek, versatile design with a mirror-finish, and third-",null,null,null,null,null,null,null,null,null,null,null,null,null,null,null,null,null,null,null,null,null,null,null,null,null,null,null,null,null,null,null,null,null,null,null,"X"]
[null,null,null,null,"party integration with popular voice & home assistants to easily include floor warming into your smart home capabilities.  Plus, when you download",null,null,null,null,null,null,null,null,null,null,null,null,null,null,null,null,null,null,null,null,null,null,null,null,null,null,null,null,null,null,null,null,null,null,null,"X"]
[null,null,null,null,"the Schluter Smart Thermostat app you get convenient, remote access to your DITRA-HEAT floor warming system from anywhere, at home or on",null,null,null,null,null,null,null,null,null,null,null,null,null,null,null,null,null,null,null,null,null,null,null,null,null,null,null,null,null,null,null,null,null,null,null,"X"]
[null,null,null,null,"the go.  Use the DITRA-HEAT-E-RRS Power Module when the heating load exceeds 15 amps (e.g., in large floor applications) to maintain a single",null,null,null,null,null,null,null,null,null,null,null,null,null,null,null,null,null,null,null,null,null,null,null,null,null,null,null,null,null,null,null,null,null,null,null,"X"]
[null,null,null,null,"point of control.",null,null,null,null,null,null,null,null,null,null,null,null,null,null,null,null,null,null,null,null,null,null,null,null,null,null,null,null,null,null,null,null,null,null,null,"X"]
[null,null,null,null,null,null,null,null,null,null,null,null,null,null,null,null,null,null,null,null,null,null,null,null,null,null,null,null,null,null,null,null,null,null,null,null,null,null,null,null,"X"]
[null,"Thermostats",null,null,null,null,"DHERT105/BW",null,null,"Smart Thermostat with Wi-Fi, App, & Voice Control",null,null,null,null,null,null,"Stock",null,{"$f":"IF(Suggested=\"Yes\",AA142,AG142)","v":249.8},"EA",{"$f":"+Instructions!$B$3","v":"N"},null,{"$f":"+Instructions!$C$22","v":0},{"$f":"ROUND($AA142*(1-W142)+0.004999,2)","v":249.8},null,"",249.8,{"$f":"+W142","v":0},{"$f":"+X142","v":249.8},{"$f":"(AG142-AC142)/AG142","v":0},null,4,{"$f":"SUM(AJ142:AL142)+AE142","v":249.8},null,null,{"$f":"ROUND(AC142/(1-VLOOKUP(AF142,Group,2,FALSE)),2)","v":249.8},{"$f":"IF(VLOOKUP(AF142,Group,5,FALSE)=\"YES\",VLOOKUP(ROUND(ROUND(AJ142,1)-AJ142,2),Round,2,FALSE)+VLOOKUP(AF142,Group,6,FALSE),0)","v":0},{"$f":"IF(VLOOKUP(AF142,Group,7,FALSE)=\"\",0,ROUND(AJ142-0.04999,1)-AJ142+AM142)","v":0},{"$f":"IF(VLOOKUP(AF142,Group,7,FALSE)=\"\",\"\",VLOOKUP(AF142,Group,7,FALSE))","v":""},null,"X"]
[null,null,null,null,null,null,null,null,null,null,null,null,null,null,null,null,null,null,null,null,null,null,null,null,null,null,null,null,null,null,null,null,null,null,null,null,null,null,null,null,"X"]
[null,null,"DITRA-HEAT-E-RRS",null,null,null,null,null," ",null,null,null,null,null,null,null,null,"Item # Lookup:","SHDHER",null,null,null,null,null,null,null,null,null,null,null,null,null,null,null,null,null,null,null,null,null,"X"]
[null,null,null,null,null,null,null,null,null,null,null,null,null,null,null,null,null,null,null,null,null,null,null,null,null,null,null,null,null,null,null,null,null,null,null,null,null,null,null,null,"X"]
[null,null,null,null,"The DITRA-HEAT-E-RRS power module is designed to uniquely work with the DITRA-HEAT-E-RS1 smart thermostat.  The power module may",null,null,null,null,null,null,null,null,null,null,null,null,null,null,null,null,null,null,null,null,null,null,null,null,null,null,null,null,null,null,null,null,null,null,null,"X"]
[null,null,null,null,"be used when the heating load exceeds 15 amps (e.g., in large floor applications) to maintain a single point of control.",null,null,null,null,null,null,null,null,null,null,null,null,null,null,null,null,null,null,null,null,null,null,null,null,null,null,null,null,null,null,null,null,null,null,null,"X"]
[]
[null,"Thermostats",null,null,null,null,"DHERR2/BW",null,null,"Power Module",null,null,null,null,null,null,"Stock",null,{"$f":"IF(Suggested=\"Yes\",AA149,AG149)","v":133.15},"EA",{"$f":"+Instructions!$B$3","v":"N"},null,{"$f":"+Instructions!$C$22","v":0},{"$f":"ROUND($AA149*(1-W149)+0.004999,2)","v":133.15},null,"",133.15,{"$f":"+W149","v":0},{"$f":"+X149","v":133.15},{"$f":"(AG149-AC149)/AG149","v":0},null,4,{"$f":"SUM(AJ149:AL149)+AE149","v":133.15},null,null,{"$f":"ROUND(AC149/(1-VLOOKUP(AF149,Group,2,FALSE)),2)","v":133.15},{"$f":"IF(VLOOKUP(AF149,Group,5,FALSE)=\"YES\",VLOOKUP(ROUND(ROUND(AJ149,1)-AJ149,2),Round,2,FALSE)+VLOOKUP(AF149,Group,6,FALSE),0)","v":0},{"$f":"IF(VLOOKUP(AF149,Group,7,FALSE)=\"\",0,ROUND(AJ149-0.04999,1)-AJ149+AM149)","v":0},{"$f":"IF(VLOOKUP(AF149,Group,7,FALSE)=\"\",\"\",VLOOKUP(AF149,Group,7,FALSE))","v":""},null,"X"]
[null,null,null,null,null,null,null,null,null,null,null,null,null,null,null,null,null,null,null,null,null,null,null,null,null,null,null,null,null,null,null,null,null,null,null,null,null,null,null,null,"X"]
[null,null,"DITRA-HEAT-E-WiFi",null,null,null,null,null,null,null,null,null,null,null,null,null,null,"Item # Lookup:","SHDHER",null,null,null,null,null,null,null,null,null,null,null,null,null,null,null,null,null,null,null,null,null,"X"]
[null,null,null,null,null,null,null,null,null,null,null,null,null,null,null,null,null,null,null,null,null,null,null,null,null,null,null,null,null,null,null,null,null,null,null,null,null,null,null,null,"X"]
[null,null,null,null,"The DITRA-HEAT-E-WiFi touchscreen programmable thermostat with Wi-Fi connectivity is easy to use with intelligent, adaptive control.  This thermostat",null,null,null,null,null,null,null,null,null,null,null,null,null,null,null,null,null,null,null,null,null,null,null,null,null,null,null,null,null,null,null,null,null,null,null,"X"]
[null,null,null,null,"makes controlling and monitoring the DITRA-HEAT floor warming system convenient and accessible from any location on your smartphone and online.",null,null,null,null,null,null,null,null,null,null,null,null,null,null,null,null,null,null,null,null,null,null,null,null,null,null,null,null,null,null,null,null,null,null,null,"X"]
[null,null,null,null,"Features include controlling multiple thermostats all from the same app, a 3.5\" color screen with easy interactive touch control, displays local temperature",null,null,null,null,null,null,null,null,null,null,null,null,null,null,null,null,null,null,null,null,null,null,null,null,null,null,null,null,null,null,null,null,null,null,null,"X"]
[null,null,null,null,"& weather forecast, 6 programmable periods per day and can track energy consumption & costs and a set-up wizard walks you through programming.",null,null,null,null,null,null,null,null,null,null,null,null,null,null,null,null,null,null,null,null,null,null,null,null,null,null,null,null,null,null,null,null,null,null,null,"X"]
[null,null,null,null,null,null,null,null,null,null,null,null,null,null,null,null,null,null,null,null,null,null,null,null,null,null,null,null,null,null,null,null,null,null,null,null,null,null,null,null,"X"]
[null,"Thermostats",null,null,null,null,"DHERT104/BW",null,null,"Programmable WiFi Touchscreen Thermostat",null,null,null,null,null,null,"Stock",null,{"$f":"IF(Suggested=\"Yes\",AA158,AG158)","v":244.75},"EA",{"$f":"+Instructions!$B$3","v":"N"},null,{"$f":"+Instructions!$C$22","v":0},{"$f":"ROUND($AA158*(1-W158)+0.004999,2)","v":244.75},null,"YES",244.75,{"$f":"+W158","v":0},{"$f":"+X158","v":244.75},{"$f":"(AG158-AC158)/AG158","v":0},null,4,{"$f":"SUM(AJ158:AL158)+AE158","v":244.75},null,null,{"$f":"ROUND(AC158/(1-VLOOKUP(AF158,Group,2,FALSE)),2)","v":244.75},{"$f":"IF(VLOOKUP(AF158,Group,5,FALSE)=\"YES\",VLOOKUP(ROUND(ROUND(AJ158,1)-AJ158,2),Round,2,FALSE)+VLOOKUP(AF158,Group,6,FALSE),0)","v":0},{"$f":"IF(VLOOKUP(AF158,Group,7,FALSE)=\"\",0,ROUND(AJ158-0.04999,1)-AJ158+AM158)","v":0},{"$f":"IF(VLOOKUP(AF158,Group,7,FALSE)=\"\",\"\",VLOOKUP(AF158,Group,7,FALSE))","v":""},null,"X"]
[null,null,null,null,null,null,null,null,null,null,null,null,null,null,null,null,null,null,null,null,null,null,null,null,null,null,null,null,null,null,null,null,null,null,null,null,null,null,null,null,"X"]
[null,null,null,null,null,null,null,null,null,null,null,null,null,null,null,null,null,null,null,null,null,null,null,null,null,null,null,null,null,null,null,null,null,null,null,null,null,null,null,null,"X"]
[null,null,null,null,null,null,null,null,null,null,null,null,null,null,null,null,null,null,null,null,null,null,null,null,null,null,null,null,null,null,null,null,null,null,null,null,null,null,null,null,"X"]
[null,null,null,null,null,null,null,null,null,null," ",null,null,null,null,null,null,null,null,null,null,null,null,null,null,null,null,null,null,null,null,null,null,null,null,null,null,null,null,null,"X"]
[null,null,null,null,null,null,null,null,null,null,null,null,null,null,null,null,null,null,null,null,null,null,null,null,null,null,null,null,null,null,null,null,null,null,null,null,null,null,null,null,"X"]
[null,null,null,null,null,null,null,null,null,null,null,null,null," ",null,null,null,null,null,null,null,null,null,null,null,null,null,null,null,null,null,null,null,null,null,null,null,null,null,null,"X"]
[null,null,null,null,null,null,null,null,null,null,null,null,null,null,null,null,null,null,null,null,null,null,null,null,null,null,null,null,null,null,null,null,null,null,null,null,null,null,null,null,"X"]
[null,null,null,null,null,null,null,null,null,null,null,null,null,null,null,null,null,null,null,null,null,null,null,null,null,null,null,null,null,null,null,null,null,null,null,null,null,null,null,null,"X"]
[null,null,null,null,null,null,null,null,null,null,null,null,null,null,null,null,null,null,null,null,null,null,null,null,null,null,null,null,null,null,null,null,null,null,null,null,null,null,null,null,"X"]
[null,null,null,null,null,null,null,null,null,null,null,null,null,null,null,null,null,null,null,null,null,null,null,null,null,null,null,null,null,null,null,null,null,null,null,null,null,null,null,null,"X"]
[null,null,null,null,null,null,null,null,null,null,null,null,null,null,null,null,null,null,null,null,null,null,null,null,null,null,null,null,null,null,null,null,null,null,null,null,null,null,null,null,"X"]
[null,null,null,null,null,null,null,null,null,null,null,null,null,null,null,null,null,null,null,null,null,null,null,null,null,null,null,null,null,null,null,null,null,null,null,null,null,null,null,null,"X"]
[null,null,"This price list is available electronically on an Excel spreadsheet at www.conestogatile.com/pricelists.",null,null,null,null,null,null,null,null,null,null,null,null,null,null,null,null,null,null,null,null,null,null,null,null,null,null,null,null,null,null,null,null,null,null,null,null,null,"X"]
[null,null,null,null,null,null,null,null,null,null,null,null,null,null,null,null,null,null,null,null,null,null,null,null,null,null,null,null,null,null,null,null,null,null,null,null,null,null,null,null,"X"]
[null,null,"The spreadsheet has many special features to assist you.  Apply your discount to generate your net costs for your purchasing department.  Apply your standard gross margin percentage or custom prices to generate your own custom price list for your showroom.  Print out individual price list for each series that can be attached to the back of your sample boards for easy reference.",null,null,null,null,null,null,null,null,null,null,null,null,null,null,null,null,null,null,null,null,null,null,null,null,null,null,null,null,null,null,null,null,null,null,null,null,null,"X"]
[null,null,null,null,null,null,null,null,null,null,null,null,null,null,null,null,null,null,null,null,null,null,null,null,null,null,null,null,null,null,null,null,null,null,null,null,null,null,null,null,"X"]
[null,null,null,null,null,null,null,null,null,null,null,null,null,null,null,null,null,null,null,null,null,null,null,null,null,null,null,null,null,null,null,null,null,null,null,null,null,null,null,null,"X"]
["X","X","X","X","X","X","X","X","X","X","X","X","X","X","X","X","X","X","X","X","X","X","X","X","X","X","X","X","X","X","X","X","X","X","X","X","X","X","X","X","X"]
[]
[null,null,null,"$.05 Round Matrix"]
[null,null,null,-0.04,0.01]
[null,null,null,-0.03,0.02]
[null,null,null,-0.02,0.03]
[null,null,null,-0.01,-0.01]
[null,null,null,0,0]
[null,null,null,0.01,1.0000000000005116E-2]
[null,null,null,0.02,2.0000000000003126E-2]
[null,null,null,0.03,3.0000000000001137E-2]
[null,null,null,0.04,-0.01]
[null,null,null,0.05,0]

{"sheet":"Websites","index":3,"n_rows":14,"n_cols":6,"rows_kept":14,"cut":false,"hidden":false,"merged":[]}
["Easy Access Website links"]
[]
["ConestogaTile's Website","http://www.cctd.com/index.php"]
[]
["Manufacturer's Home Page","http://www.schluter.com/"]
[]
[]
["Product","Direct Website Link"]
["DITRA-HEAT","http://www.schluter.com/ditra-heat/index.html"]
[]
[]
[]
[]
[null,null,null,null,null," "]

{"sheet":"Changes","index":4,"n_rows":36,"n_cols":3,"rows_kept":36,"cut":false,"hidden":false,"merged":[]}
["Date"]
["Announced","Series","Description"]
[]
["New Products"]
["2014-03-04","DITRA-HEAT","Electric Floor Warming System"]
["2014-03-04","DITRA-HEAT-E-HK","Electric Floor Warming System"]
["2014-03-04","DITRA-HEAT-E-KIT","Electric Floor Warming System"]
["2014-03-04","DITRA-HEAT-E-RS","Electric Floor Warming System"]
["2015-09-08","DITRA-HEAT-E-HK","AEMC Megohmmeter Model 6527 added."]
["2016-04-07","DITRA-HEAT-TB","Electric floor warming system with an integrated thermal break."]
["2016-04-07","DITRA-HEAT-E-R","DHERT102/BW Programmable Touchscreen Thermostat, DHERT103/BW Non-Programmable Thermostat & DHERR1/BW Power Module added. "]
["2016-06-21","DITRA-HEAT-E-KIT","2 Kits added that include the new Touchscreen Programmable Thermostat."]
["2018-05-07","DITRA-HEAT-E-WiFi","Programmable WiFi Thermostat added. "]
["2018-05-14","DITRA-HEAT-E-KIT","DHEKRTW12040 and DHEKRTW12056 120 V Kits.  An all-inclusive package containing the DITRA-HEAT uncoupling membrane, DITRA-HEAT-E-HK heating cable and the DHERT104/BW Programmable WiFi Touchscreen Thermostat."]
["2022-10-20","DITRA-HEAT-PS","DITRA-HEAT-PS is a peel and stick membrane that features a pressure-sensitive adhesive (PSA) to bond the membrane to the substrate, eliminating the need for thin-set mortar.  Quick and easy to install, DITRA-HEAT-PS integrates customizable, comfortable electric floor warming with the same functions associated with DITRA-HEAT: uncoupling, waterproofing, vapor management, and load support to ensure a long-lasting tile installation."]
["2022-10-20","DITRA-HEAT-DUO-PS","DITRA-HEAT-DUO-PS is a peel and stick membrane that features a pressure-sensitive adhesive (PSA) to bond the membrane to the substrate, eliminating the need for thin-set mortar.  Quick and easy to install, DITRA-HEAT-DUO-PS is an uncoupling membrane with an integrated bonding fleece that provides sound control, as well as a thermal break.  Optionally, the system can be customized with of DITRA-HEAT-HK floor heating cables to create a warm tiled floor."]
["2023-01-17","DITRA-HEAT-E-RS1","DHERT105/BW Smart Thermostat with Wi-Fi, App, & Voice Control added."]
["2023-01-17","DITRA-HEAT-E-RRS","DHERR2/BW Power Module to be used with the DHERT105/BW Smart Thermostat only added."]
[]
[null," "," "]
[]
["Discontinued Products"]
["2016-05-09","DITRA-HEAT-E-R","DHERS/BW Non-Programmable Thermostat."]
["2017-03-20","DITRA-HEAT-E-HK","DHEHK240269 888.0' 240 V Heating Cable only."]
["2017-05-01","DITRA-HEAT-TB","DHTB810M 5/16\" x 3' 3\" x 33' 108.00 SF Roll and the DHTB8MA 5/16\" x 3' 3\" x 2' 7\" 8.60 SF Sheet.  (Being replaced by the DITRA-HEAT-DUO uncoupling and waterproofing membrane with integrated sound control and thermal break.)"]
["2018-05-14","DITRA-HEAT-E","DHERSD/BW Programmable Thermostat."]
["2018-05-14","DITRA-HEAT-E-KIT","DHEK12040 and DHEK12056 120 V Kits that contain the DHERSD/BW Programmable Thermostat."]
["2022-05-19","DITRA-HEAT-E-KIT","DHEKRTW12040 and DHEKRTW12056 120 V Kits that contain the DHERT104/BW Programmable WiFi Touchscreen Thermostat.  DHEKRT12040 and DHEKRT12056 120 V Kits that contain the DHERT102/BW Programmable Touchscreen Thermostat."]
[]
[]
[]
["Changes"]
["2016-06-15","DITRA-HEAT-E","The DHERSD/BW Programmable Thermostat is an item Schluter is currently offering and is NOT discontinued as was previously reported on the May 9, 2016 Supplier/Product Update.  Conestoga will continue to \"Stock\" this thermostat."]
["2017-05-03","DITRA-HEAT-TB","DITRA-HEAT-TB has been renamed DITRA-HEAT-DUO.  Item # DHTB810M 5/16\" x 3' 3\" x 33' 108.00 SF Roll is now # DHD810M.  Item # DHTB8MA 5/16\" x 3' 3\" x 2' 7\" 8.60 SF Sheet is now # DHD8MA."]
["n/a",null,"(1/29/19 - Removing the AEMC Megohmmeter Model 6527 from price list.)"]
["2020-10-05"," DITRA-HEAT & DITRA-HEAT-DUO","These membranes will soon have a new design featuring cutting grooves.  This design enhancement provides an easy-cut guide and greater membrane flexibility.  Other design improvements are that membranes will be rolled fleece side out making it easier to roll into thin-set and the edges will be modified to hold a cable along the length of a seam."]